fUSD/lending_fUSD_20250117
["ID","MTS","AMOUNT","RATE_DAILY","PERIOD"]
[349354529,1737131464722,-500.0,0.00023199,2]
[349354530,1737131464731,-500.0,0.00023199,2]
[349354531,1737131464740,-500.0,0.00023199,2]
[349354532,1737131464750,-228.6,0.00023199,2]
[349354533,1737131464760,-500.0,0.00023199,2]
[349354534,1737131464770,-500.0,0.00023199,2]
[349354535,1737131464781,-500.0,0.00023199,2]
[349354536,1737131464797,-500.0,0.00023199,2]
[349354537,1737131464807,-500.0,0.00023199,2]
[349354538,1737131464816,-500.0,0.00023199,2]
[349354539,1737131464826,-500.0,0.00023199,2]
[349354540,1737131464836,-500.0,0.00023199,2]
[349354541,1737131464845,-500.0,0.00023199,2]
[349354542,1737131464855,-500.0,0.00023199,2]
[349354543,1737131464865,-500.0,0.00023199,2]
[349354544,1737131464875,-500.0,0.00023199,2]
[349354545,1737131464886,-500.0,0.00023199,2]
[349354546,1737131464897,-500.0,0.00023199,2]
[349354547,1737131464908,-178.35,0.00023199,2]
[349354548,1737131464919,-500.0,0.00023199,2]
[349354549,1737131464929,-500.0,0.00023199,2]
[349354550,1737131464940,-500.0,0.00023199,2]
[349354551,1737131464950,-500.0,0.00023199,2]
[349354552,1737131464960,-500.0,0.00023199,2]
[349354553,1737131464971,-500.0,0.00023199,2]
[349354554,1737131464981,-232.72,0.00023199,2]
[349354555,1737131464992,-505.34933364,0.00023199,2]
[349354556,1737131465003,-500.0,0.00023199,2]
[349354557,1737131465014,-500.0,0.00023199,2]
[349354558,1737131465025,-500.0,0.00023199,2]
[349354559,1737131465041,-455.08127525,0.00023199,2]
[349354560,1737131465052,-500.0,0.00023199,2]
[349354561,1737131465062,-377.94,0.00023199,2]
[349354562,1737131465073,-500.0,0.00023199,2]
[349354563,1737131465084,-500.0,0.00023199,2]
[349354564,1737131465094,-500.0,0.00023199,2]
[349354565,1737131465105,-500.0,0.00023199,2]
[349354566,1737131465115,-500.0,0.00023199,2]
[349354567,1737131465126,-500.0,0.00023199,2]
[349354568,1737131465135,-521.92,0.00023199,2]
[349354569,1737131465146,-500.0,0.00023199,2]
[349354570,1737131465156,-500.0,0.00023199,2]
[349354571,1737131465167,-674.31,0.00023199,2]
[349354572,1737131465177,-674.31,0.00023199,2]
[349354573,1737131465186,-674.31,0.00023199,2]
[349354574,1737131465196,-674.31,0.00023199,2]
[349354575,1737131465206,-674.31,0.00023199,2]
[349354576,1737131465215,-674.31,0.00023199,2]
[349354577,1737131465225,-500.0,0.00023199,2]
[349354578,1737131465234,-674.31,0.00023199,2]
[349354579,1737131465244,-500.0,0.00023199,2]
[349354580,1737131465255,-674.31,0.00023199,2]
[349354581,1737131465265,-674.31,0.00023199,2]
[349354582,1737131465274,-876.97,0.00023199,2]
[349354583,1737131465288,-674.31,0.00023199,2]
[349354584,1737131465298,-876.97,0.00023199,2]
[349354585,1737131465308,-500.0,0.00023199,2]
[349354586,1737131465318,-674.31,0.00023199,2]
[349354587,1737131465328,-876.97,0.00023199,2]
[349354588,1737131465337,-674.31,0.00023199,2]
[349354589,1737131465347,-876.97,0.00023199,2]
[349354590,1737131465357,-876.97,0.00023199,2]
[349354591,1737131465367,-674.31,0.00023199,2]
[349354592,1737131465376,-876.97,0.00023199,2]
[349354593,1737131465388,-674.31,0.00023199,2]
[349354594,1737131465399,-876.97,0.00023199,2]
[349354595,1737131465410,-674.49,0.00023199,2]
[349354596,1737131465422,-876.97,0.00023199,2]
[349354597,1737131465432,-876.97,0.00023199,2]
[349354598,1737131465442,-876.97,0.00023199,2]
[349354599,1737131465451,-876.97,0.00023199,2]
[349354600,1737131465460,-876.97,0.00023199,2]
[349354601,1737131465470,-876.97,0.00023199,2]
[349354602,1737131465479,-876.97,0.00023199,2]
[349354603,1737131465489,-876.97,0.00023199,2]
[349354604,1737131465499,-876.97,0.00023199,2]
[349354605,1737131465509,-877.08480337,0.00023199,2]
[349354606,1737131465519,-822.69,0.00023199,2]
[349354607,1737131465528,-822.69,0.00023199,2]
[349354608,1737131465544,-822.69,0.00023199,2]
[349354609,1737131465555,-822.69,0.00023199,2]
[349354610,1737131465564,-822.69,0.00023199,2]
[349354611,1737131465574,-822.69,0.00023199,2]
[349354612,1737131465585,-822.69,0.00023199,2]
[349354613,1737131465733,-822.69,0.00023199,2]
[349354614,1737131465743,-822.69,0.00023199,2]
[349354615,1737131465753,-822.69,0.00023199,2]
[349354616,1737131465763,-822.69,0.00023199,2]
[349354617,1737131465773,-822.69,0.00023199,2]
[349354618,1737131465785,-822.69,0.00023199,2]
[349354619,1737131465797,-822.69,0.00023199,2]
[349354620,1737131465806,-822.69,0.00023199,2]
[349354621,1737131465815,-822.69,0.00023199,2]
[349354622,1737131465824,-822.88,0.00023199,2]
[349354623,1737131465833,-500.0,0.00023199,2]
[349354624,1737131465842,-500.0,0.00023199,2]
[349354625,1737131465851,-457.76,0.00023199,2]
[349354626,1737131465860,-500.0,0.00023199,2]
[349354627,1737131465869,-797.61,0.00023199,2]
[349354628,1737131465878,-797.61,0.00023199,2]
[349354629,1737131465888,-797.61,0.00023199,2]
[349354630,1737131465897,-797.61,0.00023199,2]
[349354631,1737131465907,-797.61,0.00023199,2]
[349354632,1737131465917,-797.61,0.00023199,2]
[349354633,1737131465926,-797.61,0.00023199,2]
[349354634,1737131465935,-797.61,0.00023199,2]
[349354635,1737131465945,-797.61,0.00023199,2]
[349354636,1737131465955,-797.61,0.00023199,2]
[349354637,1737131465964,-797.61,0.00023199,2]
[349354638,1737131465973,-797.61,0.00023199,2]
[349354639,1737131465982,-797.61,0.00023199,2]
[349354640,1737131465992,-797.61,0.00023199,2]
[349354641,1737131466001,-797.70116333,0.00023199,2]
[349354642,1737131466011,-567.91,0.00023199,2]
[349354643,1737131466021,-567.91,0.00023199,2]
[349354644,1737131466031,-567.91,0.00023199,2]
[349354645,1737131466046,-567.91,0.00023199,2]
[349354646,1737131466055,-567.91,0.00023199,2]
[349354647,1737131466064,-567.91,0.00023199,2]
[349354648,1737131466073,-567.91,0.00023199,2]
[349354649,1737131466083,-567.91,0.00023199,2]
[349354650,1737131466092,-567.91,0.00023199,2]
[349354651,1737131466102,-567.91,0.00023199,2]
[349354652,1737131466111,-567.91,0.00023199,2]
[349354653,1737131466120,-567.91,0.00023199,2]
[349354654,1737131466130,-567.91,0.00023199,2]
[349354655,1737131466139,-500.0,0.00023199,2]
[349354656,1737131466149,-567.91,0.00023199,2]
[349354657,1737131466158,-500.0,0.00023199,2]
[349354658,1737131466168,-567.91,0.00023199,2]
[349354659,1737131466177,-567.91,0.00023199,2]
[349354660,1737131466186,-568.03,0.00023199,2]
[349354661,1737131466196,-295.58,0.00023199,2]
[349354662,1737131466206,-734.96,0.00023199,2]
[349354663,1737131466216,-734.96,0.00023199,2]
[349354664,1737131466226,-734.96,0.00023199,2]
[349354665,1737131466236,-500.0,0.00023199,2]
[349354666,1737131466245,-734.96,0.00023199,2]
[349354667,1737131466256,-734.96,0.00023199,2]
[349354668,1737131466266,-734.96,0.00023199,2]
[349354669,1737131466275,-523.56,0.00023199,2]
[349354670,1737131466289,-734.96,0.00023199,2]
[349354671,1737131466299,-523.56,0.00023199,2]
[349354672,1737131466309,-734.96,0.00023199,2]
[349354673,1737131466319,-523.56,0.00023199,2]
[349354674,1737131466328,-734.96,0.00023199,2]
[349354675,1737131466337,-523.56,0.00023199,2]
[349354676,1737131466346,-734.96,0.00023199,2]
[349354677,1737131466356,-523.56,0.00023199,2]
[349354678,1737131466366,-734.96,0.00023199,2]
[349354679,1737131466376,-523.56,0.00023199,2]
[349354680,1737131466385,-734.96,0.00023199,2]
[349354681,1737131466394,-523.56,0.00023199,2]
[349354682,1737131466404,-734.96,0.00023199,2]
[349354683,1737131466413,-523.56,0.00023199,2]
[349354684,1737131466422,-523.56,0.00023199,2]
[349354685,1737131466431,-523.56,0.00023199,2]
[349354686,1737131466441,-734.96,0.00023199,2]
[349354687,1737131466450,-523.56,0.00023199,2]
[349354688,1737131466460,-734.96,0.00023199,2]
[349354689,1737131466470,-734.96,0.00023199,2]
[349354690,1737131466481,-523.56,0.00023199,2]
[349354691,1737131466490,-734.96,0.00023199,2]
[349354692,1737131466500,-523.56,0.00023199,2]
[349354693,1737131466509,-539.13,0.00023199,2]
[349354694,1737131466519,-734.96,0.00023199,2]
[349354695,1737131466529,-500.0,0.00023199,2]
[349354696,1737131466543,-539.13,0.00023199,2]
[349354697,1737131466553,-734.96,0.00023199,2]
[349354698,1737131466562,-523.56,0.00023199,2]
[349354699,1737131466572,-734.96,0.00023199,2]
[349354700,1737131466582,-500.0,0.00023199,2]
[349354701,1737131466591,-539.13,0.00023199,2]
[349354702,1737131466600,-523.68,0.00023199,2]
[349354703,1737131466610,-500.0,0.00023199,2]
[349354704,1737131466619,-539.13,0.00023199,2]
[349354705,1737131466629,-500.0,0.00023199,2]
[349354706,1737131466638,-500.0,0.00023199,2]
[349354707,1737131466648,-539.13,0.00023199,2]
[349354708,1737131466658,-500.0,0.00023199,2]
[349354709,1737131466667,-152.36,0.00023199,2]
[349354710,1737131466677,-539.13,0.00023199,2]
[349354711,1737131466687,-500.0,0.00023199,2]
[349354712,1737131466696,-539.13,0.00023199,2]
[349354713,1737131466706,-588.41,0.00023199,2]
[349354714,1737131466719,-539.13,0.00023199,2]
[349354715,1737131466729,-539.13,0.00023199,2]
[349354716,1737131466742,-539.13,0.00023199,2]
[349354717,1737131466752,-539.13,0.00023199,2]
[349354718,1737131466761,-539.13,0.00023199,2]
[349354719,1737131466770,-539.13,0.00023199,2]
[349354720,1737131466780,-500.0,0.00023199,2]
[349354721,1737131466794,-539.13,0.00023199,2]
[349354722,1737131466803,-539.13,0.00023199,2]
[349354723,1737131466812,-539.35,0.00023199,2]
[349354724,1737131466822,-500.0,0.00023199,2]
[349354725,1737131466831,-500.0,0.00023199,2]
[349354726,1737131466840,-500.0,0.00023199,2]
[349354727,1737131466850,-840.78,0.00023199,2]
[349354728,1737131466859,-227.84,0.00023199,2]
[349354729,1737131466868,-840.78,0.00023199,2]
[349354730,1737131466878,-840.78,0.00023199,2]
[349354731,1737131466887,-840.78,0.00023199,2]
[349354732,1737131466896,-840.78,0.00023199,2]
[349354733,1737131466905,-840.78,0.00023199,2]
[349354734,1737131466914,-840.78,0.00023199,2]
[349354735,1737131466924,-840.78,0.00023199,2]
[349354736,1737131466933,-840.78,0.00023199,2]
[349354737,1737131466942,-840.78,0.00023199,2]
[349354738,1737131466952,-840.78,0.00023199,2]
[349354739,1737131466962,-840.78,0.00023199,2]
[349354740,1737131466972,-840.78,0.00023199,2]
[349354741,1737131466982,-840.78,0.00023199,2]
[349354742,1737131466991,-664.09,0.00023199,2]
[349354743,1737131467001,-840.91,0.00023199,2]
[349354744,1737131467010,-664.09,0.00023199,2]
[349354745,1737131467020,-664.09,0.00023199,2]
[349354746,1737131467029,-664.09,0.00023199,2]
[349354747,1737131467044,-500.0,0.00023199,2]
[349354748,1737131467053,-664.09,0.00023199,2]
[349354749,1737131467063,-664.09,0.00023199,2]
[349354750,1737131467072,-664.09,0.00023199,2]
[349354751,1737131467082,-664.09,0.00023199,2]
[349354752,1737131467091,-664.09,0.00023199,2]
[349354753,1737131467100,-664.09,0.00023199,2]
[349354754,1737131467109,-664.09,0.00023199,2]
[349354755,1737131467119,-664.09,0.00023199,2]
[349354756,1737131467129,-664.09,0.00023199,2]
[349354757,1737131467138,-664.09,0.00023199,2]
[349354758,1737131467148,-664.09,0.00023199,2]
[349354759,1737131467157,-664.25,0.00023199,2]
[349354760,1737131467166,-515.54,0.00023199,2]
[349354761,1737131467176,-515.54,0.00023199,2]
[349354762,1737131467186,-515.54,0.00023199,2]
[349354763,1737131467195,-515.54,0.00023199,2]
[349354764,1737131467205,-515.54,0.00023199,2]
[349354765,1737131467214,-515.54,0.00023199,2]
[349354766,1737131467224,-515.54,0.00023199,2]
[349354767,1737131467233,-515.54,0.00023199,2]
[349354768,1737131467243,-515.54,0.00023199,2]
[349354769,1737131467255,-515.54,0.00023199,2]
[349354770,1737131467266,-515.54,0.00023199,2]
[349354771,1737131467275,-515.54,0.00023199,2]
[349354772,1737131467288,-515.54,0.00023199,2]
[349354773,1737131467297,-515.54,0.00023199,2]
[349354774,1737131467307,-515.54,0.00023199,2]
[349354775,1737131467316,-515.73,0.00023199,2]
[349354776,1737131467325,-1000.0,0.00023199,2]
[349354777,1737131467334,-152.67059503,0.00023199,2]
[349354778,1737131467343,-777.22,0.00023199,2]
[349354779,1737131467353,-777.22,0.00023199,2]
[349354780,1737131467362,-777.22,0.00023199,2]
[349354781,1737131467371,-777.22,0.00023199,2]
[349354782,1737131467380,-777.22,0.00023199,2]
[349354783,1737131467390,-500.0,0.00023199,2]
[349354784,1737131467399,-777.22,0.00023199,2]
[349354785,1737131467408,-500.0,0.00023199,2]
[349354786,1737131467418,-777.22,0.00023199,2]
[349354787,1737131467427,-500.0,0.00023199,2]
[349354788,1737131467438,-777.22,0.00023199,2]
[349354789,1737131467448,-500.0,0.00023199,2]
[349354790,1737131467458,-777.22,0.00023199,2]
[349354791,1737131467468,-500.0,0.00023199,2]
[349354792,1737131467477,-500.0,0.00023199,2]
[349354793,1737131467486,-777.22,0.00023199,2]
[349354794,1737131467496,-500.0,0.00023199,2]
[349354795,1737131467505,-777.22,0.00023199,2]
[349354796,1737131467515,-500.0,0.00023199,2]
[349354797,1737131467524,-777.22,0.00023199,2]
[349354798,1737131467533,-500.0,0.00023199,2]
[349354799,1737131467547,-359.12,0.00023199,2]
[349354800,1737131467556,-777.22,0.00023199,2]
[349354801,1737131467567,-500.0,0.00023199,2]
[349354802,1737131467576,-326.6,0.00023199,2]
[349354803,1737131467585,-777.22,0.00023199,2]
[349354804,1737131467595,-777.34,0.00023199,2]
[349354805,1737131467604,-1306380.35480976,0.000232,2]
[349354806,1737131467614,-12361.4145047,0.000232,2]
[349354807,1737131467624,-1569196.15788765,0.000232,2]
[349354808,1737131468015,-500.0,0.00022899,2]
[349354809,1737131468025,-500.0,0.00022977,2]
[349354810,1737131468037,-500.0,0.00022977,2]
[349354811,1737131468049,-500.0,0.00022997,2]
[349354812,1737131468059,-500.0,0.00022997,2]
[349354813,1737131468068,-500.0,0.00022998,2]
[349354814,1737131468077,-500.0,0.00023099,2]
[349354815,1737131468087,-500.0,0.00023141,2]
[349354816,1737131468096,-500.0,0.00023178,2]
[349354817,1737131468106,-500.0,0.00023178,2]
[349354818,1737131468115,-209.4642024,0.00023179,2]
[349354819,1737131468127,-290.5357976,0.00023179,2]
[349354820,1737131468136,-500.0,0.00023179,2]
[349354821,1737131468145,-500.0,0.00023179,2]
[349354822,1737131468156,-500.0,0.00023179,2]
[349354823,1737131468165,-500.0,0.00023197,2]
[349354824,1737131468175,-500.0,0.00023197,2]
[349354825,1737131468184,-500.0,0.00023197,2]
[349354826,1737131468193,-500.0,0.00023198,2]
[349354827,1737131468203,-500.0,0.00023198,2]
[349354828,1737131468212,-500.0,0.00023198,2]
[349354829,1737131468221,-500.0,0.00023199,2]
[349354830,1737131468230,-500.0,0.00023199,2]
[349354831,1737131468239,-500.0,0.00023199,2]
[349354832,1737131468248,-500.0,0.00023199,2]
[349354833,1737131468258,-13372.64408008,0.000232,2]
[349354834,1737131468270,-6554.73698982,0.000232,2]
[349354835,1737131468282,-31376.8471404,0.000232,2]
[349354836,1737131468298,-8457.91869365,0.000232,2]
[349354837,1737131468321,-338.42099327,0.00023198,2]
[349354838,1737131468556,-500.0,0.00022899,2]
[349354839,1737131468565,-161.57900673,0.00023198,2]
[349354840,1737131468574,-382.08476297,0.00023198,2]
[349354841,1737131468586,-117.91523703,0.00023198,2]
[349354842,1737131468596,-500.0,0.00023198,2]
[349354843,1737131468605,-500.0,0.00023199,2]
[349354844,1737131468614,-500.0,0.00023199,2]
[349354845,1737131468623,-500.0,0.00023199,2]
[349354846,1737131468632,-500.0,0.00023199,2]
[349354847,1737131468642,-500.0,0.00023199,2]
[349354848,1737131468653,-500.0,0.00023199,2]
[349354849,1737131468662,-500.0,0.00023199,2]
[349354850,1737131468671,-269.56,0.00023199,2]
[349354851,1737131468681,-500.0,0.00023199,2]
[349354852,1737131468690,-500.0,0.00023199,2]
[349354853,1737131468700,-500.0,0.00023199,2]
[349354854,1737131468710,-500.0,0.00023199,2]
[349354855,1737131468724,-599.43,0.00023199,2]
[349354856,1737131468733,-500.0,0.00023199,2]
[349354857,1737131468892,-220.65,0.00023199,2]
[349354858,1737131468902,-9958.44476297,0.000232,2]
[349354859,1737131468971,-170.88511962,0.000232,2]
[349354860,1737131468982,-1600.03925035,0.000232,2]
[349354861,1737131468993,-1066.53152949,0.000232,2]
[349354862,1737131469008,-676928.21582926,0.000232,2]
[349354863,1737131469093,-10470.0,0.000232,2]
[349354864,1737131469108,-13163.39381859,0.000232,2]
[349354865,1737131469127,-612.73180099,0.000232,2]
[349354866,1737131469140,-653.550005,0.000232,2]
[349354867,1737131469290,-6122.345432,0.000232,2]
[349354868,1737131469303,-15630.62992127,0.000232,2]
[349354869,1737131469314,-49281.89769817,0.000232,2]
[349354870,1737131469326,-1373.14585864,0.000232,2]
[349354871,1737131469337,-6018.98093681,0.000232,2]
[349354872,1737131469350,-36084.42385412,0.000232,2]
[349354873,1737131469363,-2741.6010954,0.000232,2]
[349354874,1737131469374,-4969.7645,0.000232,2]
[349354875,1737131469386,-2751.2364225,0.000232,2]
[349354876,1737131469397,-2452.0,0.000232,2]
[349354877,1737131469433,-37437.09328713,0.000232,2]
[349354878,1737131469442,-8458.10239317,0.000232,2]
[349354879,1737131469457,-14949.985,0.000232,2]
[349354880,1737131469468,-622.15107803,0.000232,2]
[349354881,1737131469479,-1953.80454962,0.000232,2]
[349354883,1737131529097,153.28,0.00010137,2]
[349354884,1737131529434,153.28,0.00017599,2]
[349354886,1737132421069,208.06,0.00010137,2]
[349354887,1737132421296,208.06,0.00016813,2]
[349354889,1737132430118,-3235.05291483,0.000201,2]
[349354890,1737132440100,-11.94708517,0.000201,2]
[349354891,1737132440121,-1191.51,0.00020134,2]
[349354892,1737132440143,-477.27872504,0.00021112,2]
[349354894,1737132512332,209.79998273,0.000245,30]
[349354895,1737132521887,1000.0,0.000245,30]
[349354909,1737132631948,-979.022032,0.0002,2]
[349354910,1737132631960,-935.64054884,0.0002,2]
[349354911,1737132631969,-200.0,0.00020796,2]
[349354912,1737132631979,-1323.516998,0.00021112,2]
[349354913,1737132631988,-150.0,0.00021218,2]
[349354914,1737132631997,-150.0,0.00021358,2]
[349354915,1737132632006,-150.0,0.0002155,2]
[349354916,1737132632015,-1902.57,0.0002156,2]
[349354917,1737132632025,-150.0,0.00021572,2]
[349354918,1737132632034,-200.0,0.00021579,2]
[349354919,1737132632043,-771.11545814,0.00021589,2]
[349354920,1737132632054,-228.88454186,0.00021589,2]
[349354921,1737132632064,-227.27545837,0.00021613,2]
[349354922,1737132632079,-62.49454163,0.00021613,2]
[349354923,1737132632088,-200.0,0.00021625,2]
[349354924,1737132632097,-150.0,0.00021687,2]
[349354925,1737132632108,-150.0,0.00021781,2]
[349354926,1737132632117,-150.0,0.00021795,2]
[349354927,1737132632126,-250.0,0.00021972,2]
[349354928,1737132632135,-122.92884337,0.0002199,2]
[349354929,1737132632147,-127.07115663,0.0002199,2]
[349354930,1737132632156,-671.07,0.00022019,2]
[349354931,1737132632165,-150.0,0.00022068,2]
[349354932,1737132632174,-250.0,0.00022087,2]
[349354933,1737132632183,-150.0,0.00022115,2]
[349354934,1737132632193,-744.03823345,0.00022193,2]
[349354935,1737132632202,-189.67,0.00022241,2]
[349354936,1737132632211,-300.0,0.00022268,2]
[349354937,1737132632221,-152.203,0.00022269,2]
[349354938,1737132632230,-1229.917,0.00022269,2]
[349354939,1737132632240,-300.0,0.00022292,2]
[349354940,1737132632249,-8580.06953693,0.00022292,2]
[349354941,1737132632261,-3058.07046307,0.00022292,2]
[349354942,1737132632270,-200.0,0.00022293,2]
[349354943,1737132632280,-1191.51,0.00022398,2]
[349354944,1737132632288,-289.77,0.00022413,2]
[349354945,1737132632298,-468.0,0.00022493,2]
[349354946,1737132632308,-84.90455645,0.0002275,2]
[349354947,1737132632319,-915.09544355,0.0002275,2]
[349354948,1737132632329,-924.19996661,0.00022775,2]
[349354949,1737132632339,-1000.0,0.00022786,2]
[349354950,1737132632347,-4199.3131,0.00022897,2]
[349354951,1737132632357,-346.0656772,0.00022899,2]
[349354952,1737132632366,-500.0,0.00022899,2]
[349354953,1737132632375,-500.0,0.00022899,2]
[349354954,1737132632385,-500.0,0.00022899,2]
[349354955,1737132632394,-500.0,0.00022899,2]
[349354956,1737132632402,-500.0,0.00022899,2]
[349354957,1737132632412,-500.0,0.00022899,2]
[349354958,1737132632421,-500.0,0.00022899,2]
[349354959,1737132632430,-500.0,0.00022899,2]
[349354960,1737132632440,-500.0,0.00022899,2]
[349354961,1737132632449,-645.14632383,0.00022899,2]
[349354962,1737132632458,-500.0,0.00022899,2]
[349354963,1737132632466,-500.0,0.00022899,2]
[349354964,1737132632474,-500.0,0.00022899,2]
[349354965,1737132632483,-295.95387311,0.00022899,2]
[349354966,1737132632492,-500.0,0.00022899,2]
[349354967,1737132632502,-500.0,0.00022899,2]
[349354968,1737132632511,-500.0,0.00022899,2]
[349354969,1737132632521,-500.0,0.00022899,2]
[349354970,1737132632530,-500.0,0.00022899,2]
[349354971,1737132632539,-500.0,0.00022899,2]
[349354972,1737132632548,-500.0,0.00022899,2]
[349354973,1737132632557,-500.0,0.00022899,2]
[349354974,1737132632566,-500.0,0.00022899,2]
[349354975,1737132632575,-500.0,0.00022899,2]
[349354976,1737132632584,-500.0,0.00022899,2]
[349354977,1737132632594,-501.62509503,0.00022899,2]
[349354978,1737132632603,-500.0,0.00022899,2]
[349354979,1737132632612,-509.59013913,0.00022899,2]
[349354980,1737132632621,-411.0716583,0.00022899,2]
[349354981,1737132632630,-500.0,0.00022899,2]
[349354982,1737132632640,-500.0,0.00022899,2]
[349354983,1737132632647,-500.0,0.00022899,2]
[349354984,1737132632655,-500.0,0.00022899,2]
[349354985,1737132632664,-611.82,0.00022899,2]
[349354986,1737132632673,-601.85862202,0.00022899,2]
[349354987,1737132632683,-500.0,0.00022899,2]
[349354988,1737132632693,-500.0,0.00022899,2]
[349354989,1737132632702,-290.88887996,0.00022899,7]
[349354990,1737132632711,-500.0,0.00022899,2]
[349354991,1737132632720,-500.0,0.00022899,2]
[349354992,1737132632729,-503.21137808,0.00022899,2]
[349354993,1737132632738,-500.0,0.00022899,2]
[349354994,1737132632748,-500.0,0.00022899,2]
[349354995,1737132632757,-500.0,0.00022899,2]
[349354996,1737132632766,-500.0,0.00022899,2]
[349354997,1737132632775,-500.0,0.00022899,2]
[349354998,1737132632785,-500.0,0.00022899,2]
[349354999,1737132632795,-500.0,0.00022899,2]
[349355000,1737132632804,-500.0,0.00022899,2]
[349355001,1737132632814,-500.0,0.00022899,2]
[349355002,1737132632824,-500.0,0.00022899,2]
[349355003,1737132632834,-500.0,0.00022899,2]
[349355004,1737132632843,-500.0,0.00022899,2]
[349355005,1737132632852,-500.0,0.00022899,2]
[349355006,1737132632862,-500.0,0.00022899,2]
[349355007,1737132632871,-500.0,0.00022899,2]
[349355008,1737132632880,-500.0,0.00022899,2]
[349355009,1737132632889,-500.0,0.00022899,2]
[349355010,1737132632899,-500.0,0.00022899,2]
[349355011,1737132632908,-500.0,0.00022899,2]
[349355012,1737132632917,-500.0,0.00022899,2]
[349355013,1737132632927,-500.0,0.00022899,2]
[349355014,1737132632936,-500.0,0.00022899,2]
[349355015,1737132632946,-507.43557906,0.00022899,2]
[349355016,1737132632956,-511.242651,0.00022899,2]
[349355017,1737132632965,-500.0,0.00022899,2]
[349355018,1737132632974,-500.0,0.00022899,2]
[349355019,1737132632983,-500.0,0.00022899,2]
[349355020,1737132632993,-500.0,0.00022899,2]
[349355021,1737132633003,-612.46,0.00022899,2]
[349355022,1737132633012,-500.0,0.00022899,2]
[349355023,1737132633021,-500.0,0.00022899,2]
[349355024,1737132633030,-500.0,0.00022899,2]
[349355025,1737132633039,-500.0,0.00022899,2]
[349355026,1737132633049,-500.0,0.00022899,2]
[349355027,1737132633058,-500.0,0.00022899,2]
[349355028,1737132633072,-500.0,0.00022899,2]
[349355029,1737132633083,-510.39896248,0.00022899,2]
[349355030,1737132633093,-268.22849662,0.00022899,2]
[349355031,1737132633102,-500.0,0.00022899,2]
[349355032,1737132633113,-502.70225883,0.00022899,2]
[349355033,1737132633123,-500.0,0.00022899,2]
[349355034,1737132633132,-509.56564344,0.00022899,2]
[349355035,1737132633142,-500.0,0.00022899,2]
[349355036,1737132633151,-500.0,0.00022899,2]
[349355037,1737132633161,-500.0,0.00022899,2]
[349355038,1737132633170,-505.10731626,0.00022899,2]
[349355039,1737132633179,-500.0,0.00022899,2]
[349355040,1737132633189,-500.0,0.00022899,2]
[349355041,1737132633198,-500.0,0.00022899,2]
[349355042,1737132633208,-504.33418568,0.00022899,2]
[349355043,1737132633218,-500.0,0.00022899,2]
[349355044,1737132633228,-501.74123412,0.00022899,2]
[349355045,1737132633237,-502.22732879,0.00022899,2]